lending/lending_fUSD_20240504
["ID","MTS","AMOUNT","RATE_DAILY","PERIOD"]
[325384208,1714804264422,-304.530927,0.00033894,7]
[325384209,1714804264431,-926.894193,0.00033894,7]
[325384210,1714804264442,-155.386923,0.00033894,7]
[325384211,1714804264452,-926.894193,0.00033894,7]
[325384212,1714804264462,-151.0,0.00033894,7]
[325384213,1714804264472,-249.98956,0.00033894,7]
[325384214,1714804264482,-249.98956,0.00033894,7]
[325384215,1714804264493,-399.982056,0.00033894,7]
[325384216,1714804264503,-399.982056,0.00033894,7]
[325384217,1714804264513,-220.642998,0.00033894,7]
[325384218,1714804264523,-220.642998,0.00033894,7]
[325384219,1714804264532,-151.0,0.00033894,7]
[325384220,1714804264543,-151.0,0.00033894,7]
[325384221,1714804264552,-381.094395,0.00033894,7]
[325384222,1714804264563,-172.192935,0.00033894,7]
[325384223,1714804264572,-381.094395,0.00033894,7]
[325384224,1714804264583,-172.192935,0.00033894,7]
[325384225,1714804264595,-152.0,0.00033925,3]
[325384226,1714804264605,-155.9186164,0.00033963,7]
[325384227,1714804264614,-1000.0,0.00034,7]
[325384228,1714804264624,-1000.0,0.00034,7]
[325384229,1714804264634,-155.00516971,0.00034068,7]
[325384230,1714804264644,-279.94872111,0.00034156,7]
[325384231,1714804264654,-156.25464671,0.00034181,7]
[325384232,1714804264665,-156.25464671,0.00034205,7]
[325384233,1714804264676,-151.33,0.00034247,2]
[325384234,1714804264685,-279.94872111,0.00034268,7]
[325384235,1714804264696,-16736.218465,0.00034302,2]
[325384236,1714804264706,-34579.207962,0.00034302,2]
[325384237,1714804264715,-25267.653645,0.00034302,2]
[325384238,1714804264725,-154.35019063,0.00034306,7]
[325384239,1714804264735,-155.00516971,0.00034348,7]
[325384240,1714804264744,-155.88263549,0.00034359,7]
[325384241,1714804264755,-279.94872111,0.00034378,7]
[325384242,1714804264764,-279.94872111,0.00034388,7]
[325384243,1714804264774,-279.94872111,0.00034536,7]
[325384244,1714804264784,-167.44,0.000346,2]
[325384245,1714804264794,-159.56,0.00034603,15]
[325384246,1714804265045,-155.57086232,0.00034728,7]
[325384247,1714804265055,-155.57086232,0.00034769,7]
[325384248,1714804265066,-155.52732108,0.00034811,7]
[325384249,1714804265075,-26330.23490107,0.000349,2]
[325384250,1714804265085,-155.88263549,0.00034905,7]
[325384251,1714804265095,-159.59285619,0.00034933,7]
[325384252,1714804265104,-156.25464671,0.00034955,7]
[325384253,1714804265114,-1835.88840685,0.00035,4]
[325384254,1714804265124,-1000.0,0.00035,8]
[325384255,1714804265133,-1000.0,0.00035,8]
[325384256,1714804265143,-1103.70339682,0.00035,14]
[325384257,1714804265152,-279.94872111,0.00035143,7]
[325384258,1714804265162,-279.94872111,0.00035152,7]
[325384259,1714804265171,-155.52732108,0.00035344,7]
[325384260,1714804265181,-155.88263549,0.00035422,7]
[325384261,1714804265191,-600.0,0.00035458,10]
[325384262,1714804265201,-834.92,0.00035569,2]
[325384263,1714804265210,-2101.50700138,0.000356,30]
[325384264,1714804265220,-1000.0,0.000356,7]
[325384265,1714804265229,-156.25464671,0.00035725,7]
[325384266,1714804265239,-167.44,0.000358,2]
[325384267,1714804265249,-156.9692701,0.00035823,7]
[325384268,1714804265258,-23863.08940245,0.00035887,8]
[325384269,1714804265267,-373.21,0.0003589,120]
[325384270,1714804265277,-1355.4062643,0.000359,2]
[325384271,1714804265286,-1355.40626414,0.000359,2]
[325384272,1714804265296,-1355.40626414,0.000359,2]
[325384273,1714804265306,-1355.40626414,0.000359,2]
[325384274,1714804265315,-1355.40626414,0.000359,2]
[325384275,1714804265325,-1355.40626414,0.000359,2]
[325384276,1714804265334,-1355.40626414,0.000359,2]
[325384277,1714804265343,-1355.40626414,0.000359,2]
[325384278,1714804265353,-1355.40626414,0.000359,2]
[325384279,1714804265363,-1355.40626414,0.000359,2]
[325384280,1714804265372,-1355.40626414,0.000359,2]
[325384281,1714804265382,-1355.40626414,0.000359,2]
[325384282,1714804265391,-1355.40626414,0.000359,2]
[325384283,1714804265400,-1355.40626414,0.000359,2]
[325384284,1714804265410,-1355.40626414,0.000359,2]
[325384285,1714804265419,-1355.40626414,0.000359,2]
[325384286,1714804265429,-1355.40626414,0.000359,2]
[325384287,1714804265439,-1355.40626414,0.000359,2]
[325384288,1714804265449,-1355.40626414,0.000359,2]
[325384289,1714804265458,-1355.40626414,0.000359,2]
[325384290,1714804265468,-1000.0,0.00036,9]
[325384291,1714804265477,-600.0,0.00036006,10]
[325384292,1714804265487,-279.94872111,0.00036047,7]
[325384293,1714804265496,-1035.43432075,0.000361,5]
[325384294,1714804265506,-152.07885128,0.00036135,7]
[325384295,1714804265516,-156.25464671,0.00036138,7]
[325384296,1714804265525,-24808.72055512,0.00036164,3]
[325384297,1714804265535,-215.91349007,0.00036281,7]
[325384298,1714804265544,-155.88263549,0.00036369,7]
[325384299,1714804265553,-163.44076596,0.00036495,7]
[325384300,1714804265563,-150.0,0.00036528,2]
[325384301,1714804265573,-150.0,0.00036528,2]
[325384302,1714804265582,-150.0,0.00036528,2]
[325384303,1714804265597,-150.0,0.00036528,2]
[325384304,1714804265606,-155.57086232,0.0003653,7]
[325384305,1714804265616,-600.0,0.00036554,10]
[325384306,1714804265626,-1421.78,0.00036575,2]
[325384307,1714804265638,-279.94872111,0.00036581,7]
[325384308,1714804265648,-279.94872111,0.00036696,7]
[325384309,1714804265657,-156.25464671,0.000367,7]
[325384310,1714804265668,-155.52732108,0.00036733,7]
[325384311,1714804265678,-155.9186164,0.00036815,7]
[325384312,1714804265687,-90000.0,0.00036876,2]
[325384313,1714804265698,-194.287871,0.00036876,7]
[325384314,1714804265708,-194.287871,0.00036876,7]
[325384315,1714804265718,-151.0,0.00036876,7]
[325384316,1714804265727,-573.609053,0.00036876,7]
[325384317,1714804265736,-573.609053,0.00036876,7]
[325384318,1714804265746,-151.0,0.00036876,7]
[325384319,1714804265755,-156.25464671,0.00036916,7]
[325384320,1714804265765,-150.0,0.00036971,2]
[325384321,1714804265775,-279.94872111,0.00036979,7]
[325384322,1714804265784,-1000.0,0.00037,9]
[325384323,1714804265793,-500.0,0.00037,2]
[325384324,1714804265803,-500.0,0.00037,2]
[325384325,1714804265812,-500.0,0.00037,2]
[325384326,1714804265822,-500.0,0.00037,2]
[325384327,1714804265832,-500.0,0.00037,2]
[325384328,1714804265841,-500.0,0.00037,2]
[325384329,1714804265851,-500.0,0.00037,2]
[325384330,1714804265860,-500.0,0.00037,2]
[325384331,1714804265869,-500.0,0.00037,2]
[325384332,1714804265878,-500.0,0.00037,2]
[325384333,1714804265887,-500.0,0.00037,2]
[325384334,1714804265897,-500.0,0.00037,2]
[325384335,1714804265907,-500.0,0.00037,2]
[325384336,1714804265916,-500.0,0.00037,2]
[325384337,1714804265925,-500.0,0.00037,2]
[325384338,1714804265935,-500.0,0.00037,2]
[325384339,1714804265944,-500.0,0.00037,2]
[325384340,1714804265953,-500.0,0.00037,2]
[325384341,1714804265963,-500.0,0.00037,2]
[325384342,1714804265972,-500.0,0.00037,2]
[325384343,1714804265981,-500.0,0.00037,2]
[325384344,1714804265991,-500.0,0.00037,2]
[325384345,1714804266000,-500.0,0.00037,2]
[325384346,1714804266010,-500.0,0.00037,2]
[325384347,1714804266021,-500.0,0.00037,2]
[325384348,1714804266031,-365.81,0.00037,2]
[325384349,1714804266040,-500.0,0.00037,2]
[325384350,1714804266050,-500.0,0.00037,2]
[325384351,1714804266060,-500.0,0.00037,2]
[325384352,1714804266069,-500.0,0.00037,2]
[325384353,1714804266078,-500.0,0.00037,2]
[325384354,1714804266087,-500.0,0.00037,2]
[325384355,1714804266097,-500.0,0.00037,2]
[325384356,1714804266106,-500.0,0.00037,2]
[325384357,1714804266116,-500.0,0.00037,2]
[325384358,1714804266125,-500.0,0.00037,2]
[325384359,1714804266135,-500.0,0.00037,2]
[325384360,1714804266143,-500.0,0.00037,2]
[325384361,1714804266153,-500.0,0.00037,2]
[325384362,1714804266162,-500.0,0.00037,2]
[325384363,1714804266172,-500.0,0.00037,2]
[325384364,1714804266181,-500.0,0.00037,2]
[325384365,1714804266191,-500.0,0.00037,2]
[325384366,1714804266201,-500.0,0.00037,2]
[325384367,1714804266211,-500.0,0.00037,2]
[325384368,1714804266220,-500.0,0.00037,2]
[325384369,1714804266230,-500.0,0.00037,2]
[325384370,1714804266239,-500.0,0.00037,2]
[325384371,1714804266249,-500.0,0.00037,2]
[325384372,1714804266259,-500.0,0.00037,2]
[325384373,1714804266268,-500.0,0.00037,2]
[325384374,1714804266278,-500.0,0.00037,2]
[325384375,1714804266287,-500.0,0.00037,2]
[325384376,1714804266297,-500.0,0.00037,2]
[325384377,1714804266307,-500.0,0.00037,2]
[325384378,1714804266316,-500.0,0.00037,2]
[325384379,1714804266327,-500.0,0.00037,2]
[325384380,1714804266336,-500.0,0.00037,2]
[325384381,1714804266346,-500.0,0.00037,2]
[325384382,1714804266355,-413.41,0.00037,2]
[325384383,1714804266365,-500.0,0.00037,2]
[325384384,1714804266374,-500.0,0.00037,2]
[325384385,1714804266383,-500.0,0.00037,2]
[325384386,1714804266393,-500.0,0.00037,2]
[325384387,1714804266403,-500.0,0.00037,2]
[325384388,1714804266413,-500.0,0.00037,2]
[325384389,1714804266422,-500.0,0.00037,2]
[325384390,1714804266432,-500.0,0.00037,2]
[325384391,1714804266441,-403.99,0.00037,2]
[325384392,1714804266451,-500.0,0.00037,2]
[325384393,1714804266460,-516.0,0.00037,2]
[325384394,1714804266469,-2000.0,0.00037,2]
[325384395,1714804266479,-500.0,0.00037,2]
[325384396,1714804266488,-260.428128,0.00037,7]
[325384397,1714804266498,-260.428128,0.00037,7]
[325384398,1714804266508,-151.0,0.00037,7]
[325384399,1714804266518,-253.161467,0.00037,7]
[325384400,1714804266528,-151.0,0.00037,7]
[325384401,1714804266538,-253.161467,0.00037,7]
[325384402,1714804266547,-151.0,0.00037,7]
[325384403,1714804266557,-521.460778,0.00037,7]
[325384404,1714804266566,-151.0,0.00037,7]
[325384405,1714804266576,-521.460778,0.00037,7]
[325384406,1714804266586,-277.103866,0.00037,7]
[325384407,1714804266600,-277.103866,0.00037,7]
[325384408,1714804266609,-151.0,0.00037,7]
[325384409,1714804266619,-151.0,0.00037,7]
[325384410,1714804266629,-150.0,0.00037085,2]
[325384411,1714804266639,-150.0,0.00037098,2]
[325384412,1714804266648,-600.0,0.00037102,10]
[325384413,1714804266658,-150.0,0.00037142,2]
[325384414,1714804266668,-150.0,0.0003716,2]
[325384415,1714804266680,-150.0,0.00037173,2]
[325384416,1714804266690,-150.0,0.00037181,2]
[325384417,1714804266700,-150.0,0.00037198,2]
[325384418,1714804266710,-150.0,0.00037203,2]
[325384419,1714804266719,-150.0,0.00037208,2]
[325384420,1714804266729,-150.0,0.00037211,2]
[325384421,1714804266738,-150.0,0.00037222,2]
[325384422,1714804266748,-150.0,0.00037224,2]
[325384423,1714804266757,-150.0,0.0003725,2]
[325384424,1714804266768,-522.41,0.0003726,2]
[325384425,1714804266778,-703.54,0.0003726,2]
[325384426,1714804266788,-302.42,0.0003726,2]
[325384427,1714804266797,-322.29,0.0003726,2]
[325384428,1714804266807,-700.86,0.0003726,2]
[325384429,1714804266817,-150.0,0.0003726,2]
[325384430,1714804266827,-155.88263549,0.00037273,7]
[325384431,1714804266836,-150.0,0.00037277,2]
[325384432,1714804266846,-150.0,0.00037279,2]
[325384433,1714804266855,-150.0,0.0003728,2]
[325384434,1714804266865,-150.0,0.00037293,2]
[325384435,1714804266874,-150.0,0.00037295,2]
[325384436,1714804266883,-150.0,0.00037301,2]
[325384437,1714804266893,-150.0,0.00037319,2]
[325384438,1714804266902,-150.0,0.00037324,2]
[325384439,1714804266911,-150.0,0.00037329,2]
[325384440,1714804266921,-150.0,0.00037351,2]
[325384441,1714804266931,-150.0,0.00037352,2]
[325384442,1714804266940,-150.0,0.00037358,2]
[325384443,1714804266951,-150.0,0.00037361,2]
[325384444,1714804266960,-150.0,0.00037365,2]
[325384445,1714804266970,-150.0,0.00037371,2]
[325384446,1714804266979,-150.0,0.00037373,2]
[325384447,1714804266989,-155.88263549,0.00037384,7]
[325384448,1714804266999,-150.0,0.00037399,2]
[325384449,1714804267009,-150.0,0.00037399,2]
[325384450,1714804267019,-150.0,0.00037399,2]
[325384451,1714804267028,-150.0,0.00037423,2]
[325384452,1714804267038,-150.0,0.00037427,2]
[325384453,1714804267047,-150.0,0.00037428,2]
[325384454,1714804267057,-150.0,0.00037428,2]
[325384455,1714804267067,-150.0,0.00037432,2]
[325384456,1714804267077,-150.0,0.00037432,2]
[325384457,1714804267086,-150.0,0.00037436,2]
[325384458,1714804267095,-150.0,0.00037452,2]
[325384459,1714804267104,-150.0,0.00037454,2]
[325384460,1714804267113,-300.0,0.00037465,2]
[325384461,1714804267123,-300.0,0.00037466,2]
[325384462,1714804267132,-150.0,0.00037474,2]
[325384463,1714804267141,-150.0,0.00037474,2]
[325384464,1714804267151,-150.0,0.00037479,2]
[325384465,1714804267160,-159.7944744,0.00037479,7]
[325384466,1714804267170,-1000.0,0.000375,2]
[325384467,1714804267179,-150.0,0.00037504,2]
[325384468,1714804267188,-279.94872111,0.00037514,7]
[325384469,1714804267199,-300.0,0.00037529,2]
[325384470,1714804267208,-150.0,0.00037542,2]
[325384471,1714804267218,-150.0,0.0003755,2]
[325384472,1714804267227,-150.0,0.00037566,2]
[325384473,1714804267237,-150.73225285,0.0003757,2]
[325384474,1714804267246,-150.0,0.00037574,2]
[325384475,1714804267256,-150.0,0.0003758,2]
[325384476,1714804267265,-150.0,0.00037582,2]
[325384477,1714804267275,-150.0,0.00037585,2]
[325384478,1714804267285,-150.0,0.00037603,2]
[325384479,1714804267294,-155.88263549,0.00037604,7]
[325384480,1714804267303,-150.0,0.00037613,2]
[325384481,1714804267313,-155.88263549,0.00037617,7]
[325384482,1714804267323,-167.813,0.0003762,4]
[325384483,1714804267332,-167.814,0.0003762,4]
[325384484,1714804267434,-167.814,0.0003762,4]
[325384485,1714804267444,-167.814,0.0003762,4]
[325384486,1714804267453,-167.814,0.0003762,4]
[325384487,1714804267463,-150.0,0.00037634,2]
[325384488,1714804267472,-150.0,0.00037635,2]
[325384489,1714804267482,-301.92171486,0.00037641,2]
[325384490,1714804267491,-600.0,0.0003765,10]
[325384491,1714804267500,-150.0,0.00037654,2]
[325384492,1714804267510,-150.0,0.00037662,2]
[325384493,1714804267519,-150.0,0.00037664,2]
[325384494,1714804267528,-150.0,0.00037664,2]
[325384495,1714804267538,-150.0,0.00037665,2]
[325384496,1714804267547,-150.0,0.0003767,2]
[325384497,1714804267556,-151.33,0.00037671,2]
[325384498,1714804267566,-150.0,0.00037685,2]
[325384499,1714804267576,-150.0,0.00037694,2]
[325384500,1714804267588,-150.0,0.00037698,2]
[325384501,1714804267598,-150.0,0.00037706,2]
[325384502,1714804267608,-150.0,0.00037715,2]
[325384503,1714804267617,-300.0,0.00037722,2]
[325384504,1714804267627,-300.0,0.00037724,2]
[325384505,1714804267637,-164.69011439,0.00037726,7]
[325384506,1714804267647,-150.0,0.00037735,2]
[325384507,1714804267656,-150.0,0.00037742,2]
[325384508,1714804267667,-150.0,0.00037748,2]
[325384509,1714804267680,-150.0,0.00037763,2]
[325384510,1714804267690,-150.0,0.00037769,2]
[325384511,1714804267702,-150.0,0.00037771,2]
[325384512,1714804267712,-150.0,0.00037776,2]
[325384513,1714804267722,-150.0,0.00037779,2]
[325384514,1714804267731,-150.0,0.00037781,2]
[325384515,1714804267740,-150.0,0.00037795,2]
[325384516,1714804267749,-300.0,0.000378,2]
[325384517,1714804267760,-150.0,0.00037804,2]
[325384518,1714804267769,-150.0,0.00037804,2]
[325384519,1714804267779,-150.0,0.00037816,2]
[325384520,1714804267788,-300.0,0.0003782,2]
[325384521,1714804267797,-150.0,0.00037823,2]
[325384522,1714804267806,-150.0,0.00037833,2]
[325384523,1714804267816,-150.0,0.00037836,2]
[325384524,1714804267826,-150.0,0.0003784,2]
[325384525,1714804267836,-150.0,0.00037846,2]
[325384526,1714804267845,-150.0,0.00037854,2]
[325384527,1714804267854,-150.0,0.00037869,2]
[325384528,1714804267864,-150.0,0.0003788,2]
[325384529,1714804267873,-150.0,0.00037886,2]
[325384530,1714804267882,-150.0,0.00037889,2]
[325384531,1714804267891,-211.98313337,0.000379,120]
[325384532,1714804267900,-150.0,0.00037906,2]
[325384533,1714804267909,-150.0,0.00037932,2]
[325384534,1714804267919,-150.0,0.00037939,2]
[325384535,1714804267928,-300.0,0.00037939,2]
[325384536,1714804267937,-150.0,0.00037944,2]
[325384537,1714804267947,-150.0,0.0003795,2]
[325384538,1714804267956,-150.0,0.00037952,2]
[325384539,1714804267966,-150.0,0.00037969,2]
[325384540,1714804267975,-700.0,0.0003797,2]
[325384541,1714804267984,-400.0,0.0003797,2]
[325384542,1714804267994,-150.0,0.00037971,2]
[325384543,1714804268002,-283.008644,0.00037974,7]
[325384544,1714804268011,-283.008644,0.00037974,7]
[325384545,1714804268021,-151.0,0.00037974,7]
[325384546,1714804268031,-151.0,0.00037974,7]
[325384547,1714804268041,-226.889923,0.00037974,7]
[325384548,1714804268052,-226.889923,0.00037974,7]
[325384549,1714804268061,-181.92438,0.00037974,7]
[325384550,1714804268071,-181.92438,0.00037974,7]
[325384551,1714804268080,-151.0,0.00037974,7]
[325384552,1714804268090,-151.0,0.00037974,7]
[325384553,1714804268099,-237.512164,0.00037974,7]
[325384554,1714804268108,-237.512164,0.00037974,7]
[325384555,1714804268118,-151.0,0.00037974,7]
[325384556,1714804268128,-151.0,0.00037974,7]
[325384557,1714804268137,-151.0,0.00037974,7]
[325384558,1714804268146,-275.532152,0.00037974,7]
[325384559,1714804268156,-275.532152,0.00037974,7]
[325384560,1714804268166,-151.0,0.00037974,7]
[325384561,1714804268175,-151.0,0.00037974,7]
[325384562,1714804268184,-151.0,0.00037974,7]
[325384563,1714804268194,-151.0,0.00037974,7]
[325384564,1714804268203,-244.904333,0.00037974,7]
[325384565,1714804268212,-156.081811,0.00037974,7]
[325384566,1714804268222,-153.475904,0.00037974,7]
[325384567,1714804268232,-156.081811,0.00037974,7]
[325384568,1714804268241,-857.181644,0.00037974,7]
[325384569,1714804268250,-151.0,0.00037974,7]
[325384570,1714804268260,-160.243981,0.00037974,7]
[325384571,1714804268269,-914.736561,0.00037974,7]
[325384572,1714804268279,-857.181644,0.00037974,7]
[325384573,1714804268288,-160.243981,0.00037974,7]
[325384574,1714804268298,-914.736561,0.00037974,7]
[325384575,1714804268306,-181.152315,0.00037974,7]
[325384576,1714804268316,-241.352972,0.00037974,7]
[325384577,1714804268325,-241.352972,0.00037974,7]
[325384578,1714804268333,-579.799043,0.00037974,7]
[325384579,1714804268342,-579.799043,0.00037974,7]
[325384580,1714804268351,-251.730952,0.00037974,7]
[325384581,1714804268361,-251.730952,0.00037974,7]
[325384582,1714804268370,-151.0,0.00037974,7]
[325384583,1714804268379,-151.0,0.00037974,7]
[325384584,1714804268388,-962.957122,0.00037974,7]
[325384585,1714804268398,-151.0,0.00037974,7]
[325384586,1714804268407,-962.957122,0.00037974,7]
[325384587,1714804268416,-151.0,0.00037974,7]
[325384588,1714804268425,-151.0,0.00037974,7]
[325384589,1714804268434,-151.0,0.00037974,7]
[325384590,1714804268444,-426.13724,0.00037974,7]
[325384591,1714804268453,-151.0,0.00037974,7]
[325384592,1714804268463,-426.13724,0.00037974,7]
[325384593,1714804268472,-151.0,0.00037974,7]
[325384594,1714804268481,-153.968188,0.00037974,7]
[325384595,1714804268490,-153.968188,0.00037974,7]
[325384596,1714804268499,-151.0,0.00037974,7]
[325384597,1714804268508,-151.0,0.00037974,7]
[325384598,1714804268517,-151.0,0.00037974,7]
[325384599,1714804268527,-226.11928,0.00037974,7]
[325384600,1714804268536,-226.11928,0.00037974,7]
[325384601,1714804268546,-205.119864,0.00037974,7]
[325384602,1714804268555,-205.119864,0.00037974,7]
[325384603,1714804268564,-150.0,0.00037985,2]
[325384604,1714804268574,-150.0,0.00037994,2]
[325384605,1714804268583,-150.0,0.00037995,2]
[325384606,1714804268594,-300.3161631,0.00037996,2]
[325384607,1714804268606,-5559.03748487,0.00037998,4]
[325384608,1714804268615,-156.05257033,0.00037998,2]
[325384609,1714804268624,-394.05333477,0.00037998,4]
[325384610,1714804268633,-412.71073178,0.00037998,2]
[325384611,1714804268645,-324.83465646,0.00037998,4]
[325384612,1714804268655,-155.09875831,0.00037998,4]
[325384613,1714804268664,-295.9816023,0.00037998,4]
[325384614,1714804268674,-155.77020411,0.00037998,4]
[325384615,1714804268684,-367.01083075,0.00037998,4]
[325384616,1714804268693,-371.25457145,0.00037998,4]
[325384617,1714804268702,-155.56628022,0.00037998,4]
[325384618,1714804268711,-151.0,0.00037998,7]
[325384619,1714804268720,-885434.36702359,0.00038,3]
[325384620,1714804268730,-173.25,0.00038,7]
[325384621,1714804268739,-202.79752669,0.00038,60]
[325384622,1714804268748,-70279.44326469,0.00038,10]
[325384623,1714804268757,-1603.63063993,0.00038,4]
[325384624,1714804268766,-1033.0,0.00038,5]
[325384625,1714804268775,-958.28205799,0.00038,3]
[325384626,1714804268784,-685.0,0.00038,12]
[325384627,1714804268793,-151.0,0.00038,7]
[325384628,1714804268802,-496.0,0.00038,24]
[325384629,1714804268811,-283.008644,0.00038,7]
[325384630,1714804268820,-283.008644,0.00038,7]
[325384631,1714804268829,-151.0,0.00038,7]
[325384632,1714804268838,-151.0,0.00038,7]
[325384633,1714804268847,-226.889923,0.00038,7]
[325384634,1714804268856,-226.889923,0.00038,7]
[325384635,1714804268865,-181.92438,0.00038,7]
[325384636,1714804268874,-181.92438,0.00038,7]
[325384637,1714804268883,-199.48643,0.00038,7]
[325384638,1714804268892,-199.48643,0.00038,7]
[325384639,1714804268901,-151.0,0.00038,7]
[325384640,1714804268911,-151.0,0.00038,7]
[325384641,1714804268919,-237.512164,0.00038,7]
[325384642,1714804268929,-237.512164,0.00038,7]
[325384643,1714804268938,-151.0,0.00038,7]
[325384644,1714804268947,-151.0,0.00038,7]
[325384645,1714804268957,-151.0,0.00038,7]
[325384646,1714804268966,-151.0,0.00038,7]
[325384647,1714804268975,-151.0,0.00038,7]
[325384648,1714804268984,-275.532152,0.00038,7]
[325384649,1714804268993,-275.532152,0.00038,7]
[325384650,1714804269003,-151.0,0.00038,7]
[325384651,1714804269012,-152.075517,0.00038,7]
[325384652,1714804269022,-151.0,0.00038,7]
[325384653,1714804269032,-151.0,0.00038,7]
[325384654,1714804269041,-244.904333,0.00038,7]
[325384655,1714804269051,-156.081811,0.00038,7]
[325384656,1714804269059,-156.081811,0.00038,7]
[325384657,1714804269068,-857.181644,0.00038,7]
[325384658,1714804269078,-151.0,0.00038,7]
[325384659,1714804269087,-160.243981,0.00038,7]
[325384660,1714804269096,-914.736561,0.00038,7]
[325384661,1714804269105,-857.181644,0.00038,7]
[325384662,1714804269114,-160.243981,0.00038,7]
[325384663,1714804269123,-914.736561,0.00038,7]
[325384664,1714804269132,-241.352972,0.00038,7]
[325384665,1714804269141,-241.352972,0.00038,7]
[325384666,1714804269150,-579.799043,0.00038,7]
[325384667,1714804269159,-579.799043,0.00038,7]
[325384668,1714804269168,-251.730952,0.00038,7]
[325384669,1714804269177,-251.730952,0.00038,7]
[325384670,1714804269186,-151.0,0.00038,7]
[325384671,1714804269195,-151.0,0.00038,7]
[325384672,1714804269204,-962.957122,0.00038,7]
[325384673,1714804269213,-151.0,0.00038,7]
[325384674,1714804269222,-962.957122,0.00038,7]
[325384675,1714804269231,-151.0,0.00038,7]
[325384676,1714804269240,-151.0,0.00038,7]
[325384677,1714804269249,-151.0,0.00038,7]
[325384678,1714804269259,-426.13724,0.00038,7]
[325384679,1714804269268,-151.0,0.00038,7]
[325384680,1714804269277,-426.13724,0.00038,7]
[325384681,1714804269286,-151.0,0.00038,7]
[325384682,1714804269295,-153.968188,0.00038,7]
[325384683,1714804269304,-153.968188,0.00038,7]
[325384684,1714804269313,-151.0,0.00038,7]
[325384685,1714804269323,-151.0,0.00038,7]
[325384686,1714804269332,-151.0,0.00038,7]
[325384687,1714804269341,-226.11928,0.00038,7]
[325384688,1714804269350,-226.11928,0.00038,7]
[325384689,1714804269360,-205.119864,0.00038,7]
[325384690,1714804269369,-205.119864,0.00038,7]
[325384691,1714804269379,-194.287871,0.00038,7]
[325384692,1714804269387,-194.287871,0.00038,7]
[325384693,1714804269397,-153.145064,0.00038,7]
[325384694,1714804269406,-573.609053,0.00038,7]
[325384695,1714804269415,-573.609053,0.00038,7]
[325384696,1714804269425,-151.0,0.00038,7]
[325384697,1714804269436,-748.969284,0.00038,7]
[325384698,1714804269446,-748.969284,0.00038,7]
[325384699,1714804269455,-270.525452,0.00038,7]
[325384700,1714804269466,-270.525452,0.00038,7]
[325384701,1714804269475,-540.317802,0.00038,7]
[325384702,1714804269485,-628.085847,0.00038,7]
[325384703,1714804269494,-540.317802,0.00038,7]
[325384704,1714804269504,-628.085847,0.00038,7]
[325384705,1714804269513,-151.0,0.00038,7]
[325384706,1714804269523,-151.0,0.00038,7]
[325384707,1714804269532,-151.0,0.00038,7]